bitfinex/quotes_SOLUSD_20241113
["timestamp","ask_amount","ask_price","bid_price","bid_amount"]
[1731525402876,0.1,216.54,216.52,20.0]
[1731525403076,11.5366,216.7,216.52,20.0]
[1731525403077,0.1,216.6,216.54,34.5468]
[1731525403296,0.1,216.65,216.6,20.0]
[1731525403497,0.1,216.65,216.64,43.16355816]
[1731525403878,0.1,216.65,216.62,43.16355816]
[1731525404079,0.1,216.65,216.64,43.16355816]
[1731525404390,0.1,216.65,216.56,43.16355816]
[1731525404391,0.1,216.57,216.56,43.16355816]
[1731525404584,0.1,216.57,216.45,36.0001]
[1731525404585,0.1,216.53,216.45,36.0001]
[1731525404775,0.1,216.44,216.4,12.1536]
[1731525404974,0.1,216.41,216.39,4.159]
[1731525405174,0.1,216.39,216.38,14.9913439]
[1731525405376,0.1,216.43,216.38,14.9913439]
[1731525405904,70.0,216.73,216.38,14.9913439]
[1731525405905,0.1,216.39,216.38,0.4337439]
[1731525406198,20.0,216.6,216.38,43.59730206]
[1731525406199,0.1,216.42,216.38,43.59730206]
[1731525406494,0.1,216.44,216.41,43.16355816]
[1731525406693,0.1,216.44,216.38,0.4337439]
[1731525406694,0.1,216.44,216.43,43.16355816]
[1731525407075,0.1,216.46,216.43,43.16355816]
[1731525407290,0.1,216.42,216.39,43.16355816]
[1731525407598,0.1,216.4,216.38,0.4337439]
[1731525407795,0.1,216.4,216.39,43.16355816]
[1731525408400,0.1,216.4,216.38,0.4337439]
[1731525408899,0.22549,216.4,216.38,0.4337439]
[1731525409085,43.28904816,216.39,216.38,0.4337439]
[1731525409283,0.12549,216.39,216.38,0.4337439]
[1731525410181,0.1,216.4,216.38,0.4337439]
[1731525410377,0.1,216.45,216.39,43.16355816]
[1731525410582,0.1,216.45,216.44,43.16355816]
[1731525411387,4.7182,216.54,216.44,43.16355816]
[1731525411388,0.1,216.5,216.44,47.32165816]
[1731525411592,0.1,216.5,216.49,43.16355816]
[1731525411894,43.16355816,216.59,216.49,43.16355816]
[1731525411895,0.1,216.52,216.49,43.16355816]
[1731525412203,0.1,216.48,216.47,43.16355816]
[1731525412385,0.099941,216.57,216.38,0.4337439]
[1731525412386,0.1,216.44,216.43,43.16355816]
[1731525412584,0.1,216.42,216.41,43.16355816]
[1731525412781,0.1,216.47,216.41,43.16355816]
[1731525413095,0.1,216.51,216.46,43.16355816]
[1731525413281,0.1,216.47,216.46,43.16355816]
[1731525413483,0.1,216.43,216.42,43.16355816]
[1731525413885,43.16355816,216.52,216.42,43.16355816]
[1731525413886,0.1,216.48,216.42,43.16355816]
[1731525414102,0.1,216.5,216.47,43.16355816]
[1731525414279,0.1,216.5,216.49,43.16355816]
[1731525414777,0.1,216.44,216.43,43.16355816]
[1731525415405,0.1,216.44,216.43,47.32185816]
[1731525415820,0.1,216.46,216.43,47.32185816]
[1731525415987,0.1,216.46,216.45,43.16355816]
[1731525416192,0.1,216.49,216.45,43.16355816]
[1731525416403,0.1,216.51,216.48,43.16355816]
[1731525416712,0.1,216.51,216.5,43.16355816]
[1731525417090,0.1,216.57,216.51,20.0]
[1731525417398,0.099941,216.68,216.51,20.0]
[1731525417399,0.1,216.6,216.58,14.5442]
[1731525417590,0.1,216.6,216.59,43.16355816]
[1731525418017,0.1,216.58,216.57,43.16355816]
[1731525418396,0.1,216.56,216.55,43.16355816]
[1731525419609,0.1,216.59,216.56,4.1558]
[1731525419811,0.1,216.59,216.57,43.16355816]
[1731525420014,0.099941,216.7,216.57,63.16355816]
[1731525420015,0.1,216.58,216.57,63.16355816]
[1731525420391,0.1,216.58,216.57,43.16355816]
[1731525420596,0.1,216.56,216.55,43.16355816]
[1731525420804,0.1,216.54,216.53,43.16355816]
[1731525421091,0.1,216.52,216.51,53.55525816]
[1731525421287,0.1,216.52,216.51,57.71205816]
[1731525422495,0.1,216.52,216.43,33.048]
[1731525422496,0.1,216.44,216.43,43.16355816]
[1731525422894,0.1,216.49,216.43,43.16355816]
[1731525423221,0.099941,216.62,216.42,47.2746]
[1731525423222,0.1,216.43,216.42,47.2746]
[1731525424009,0.1,216.43,216.42,14.5549]
[1731525424512,2.36912091,217.28,216.38,0.4337439]
[1731525424513,0.1,216.42,216.39,43.16355816]
[1731525424714,0.1,216.4,216.38,0.4337439]
[1731525425213,0.1,216.4,216.39,43.16355816]
[1731525425429,0.1,216.4,216.38,0.4337439]
[1731525425714,4.7212,216.4,216.38,0.4337439]
[1731525425923,0.12549,216.39,216.38,0.4337439]
[1731525426292,43.48898916,216.39,216.38,0.4337439]
[1731525426702,43.38904816,216.39,216.38,0.4337439]
[1731525426903,0.12549,216.39,216.38,0.4337439]
[1731525427193,43.48898916,216.39,216.38,0.4337439]
[1731525427405,86.65254732,216.39,216.38,0.3083439]
[1731525427619,86.65254732,216.39,216.2,43.16355816]
[1731525427620,0.1,216.21,216.2,43.16355816]
[1731525428224,0.12549,216.26,216.1,4.1646]
[1731525428225,0.1,216.17,216.1,4.1646]
[1731525428394,0.1,216.17,216.16,43.59730206]
[1731525429517,0.1,216.21,216.17,14.5717]
[1731525429713,0.1,216.27,216.2,43.16355816]
[1731525429898,0.1,216.25,216.24,43.16355816]
[1731525430098,0.1,216.19,216.18,43.16355816]
[1731525430318,0.1,216.17,216.16,0.4337439]
[1731525430517,0.199941,216.17,216.16,0.4337439]
[1731525430813,0.325431,216.17,216.16,0.3083439]
[1731525431025,43.48898916,216.17,216.16,0.3083439]
[1731525431721,91.27844732,216.17,216.16,0.3083439]
[1731525431900,0.1,216.02,216.01,76.09305816]
[1731525432099,0.1,216.02,216.01,43.16355816]
[1731525432295,0.325431,216.09,215.99,10.4169]
[1731525432296,0.1,216.0,215.99,43.16355816]
[1731525432522,0.1,215.98,215.95,43.16355816]
[1731525432824,0.12549,216.05,215.91,40.9242]
[1731525432825,0.1,215.95,215.94,43.59730206]
[1731525433423,0.1,215.78,215.77,3.6019116]
[1731525433726,0.1,215.73,215.63,4.1737]
[1731525434025,43.38904816,215.73,215.62,43.16355816]
[1731525434196,43.26355816,215.73,215.62,43.16355816]
[1731525434614,43.26355816,215.73,215.64,43.16355816]
[1731525434928,43.28904816,215.73,215.67,0.2]
[1731525435096,43.16355816,215.76,215.71,0.2]
[1731525435299,43.16355816,215.76,215.58,0.1]
[1731525435300,43.16355816,215.79,215.68,0.1]
[1731525435525,43.16355816,215.78,215.7,0.1]
[1731525435699,23.1585,215.91,215.75,0.1]
[1731525435894,0.12549,215.9,215.72,0.4337439]
[1731525436406,0.12549,215.9,215.72,0.5337439]
[1731525436598,0.12549,215.9,215.72,0.6337439]
[1731525437014,23.1585,215.91,215.76,43.16355816]
[1731525437015,43.16355816,215.85,215.76,43.16355816]
[1731525437415,0.12549,215.8,215.72,0.4337439]
[1731525437600,0.12549,215.77,215.72,0.4337439]
[1731525437805,43.28904816,215.73,215.72,0.4337439]
[1731525438415,43.28904816,215.73,215.72,0.3083439]
[1731525438729,0.12549,215.73,215.72,0.3083439]
[1731525438906,0.12549,215.74,215.72,0.3083439]
[1731525439097,43.16355816,215.73,215.72,0.3083439]
[1731525439923,52.98683314,215.73,215.72,0.3083439]
[1731525440322,47.79895816,215.73,215.72,0.3083439]
[1731525440624,47.79895816,215.73,215.72,0.1829439]
[1731525441000,4.6354,215.73,215.72,0.1829439]
[1731525441300,43.16355816,215.73,215.72,0.1829439]
[1731525441924,43.16355816,215.78,215.72,0.1829439]
[1731525442105,43.16355816,215.76,215.72,0.1829439]
[1731525442302,16.2187,215.8,215.72,0.1829439]
[1731525442303,0.12549,215.73,215.72,0.1829439]
[1731525442498,5.48597609,215.73,215.72,0.0575439]
[1731525442704,48.64953425,215.73,215.72,4.39e-05]
[1731525442925,48.64953425,215.73,215.54,43.16355816]
[1731525442926,5.36048609,215.72,215.54,43.16355816]
[1731525443234,5.36048609,215.72,215.5,0.4337439]
[1731525443235,32.55068707,215.8,215.62,43.16355816]
[1731525443401,43.16355816,215.72,215.62,43.16355816]
[1731525443601,43.16355816,215.7,215.62,43.16355816]
[1731525443801,4.6369,215.66,215.58,43.16355816]
[1731525444022,4.6369,215.66,215.62,43.16355816]
[1731525444232,4.6369,215.66,215.6,0.1]
[1731525444233,43.16355816,215.69,215.6,43.36355816]
[1731525444529,22.64757319,215.8,215.6,0.1]
[1731525444530,43.16355816,215.67,215.6,0.1]
[1731525444733,4.6356,215.72,215.66,43.16355816]
[1731525445114,4.6351,215.75,215.68,43.16355816]
[1731525445421,47.79785816,215.79,215.7,43.16355816]
[1731525445620,43.16355816,215.75,215.66,43.36355816]
[1731525445815,43.16355816,215.68,215.63,0.1]
[1731525446040,16.2232,215.74,215.61,0.1]
[1731525446041,43.16355816,215.7,215.61,43.16355816]
[1731525446206,43.16355816,215.7,215.61,43.26355816]
[1731525446407,43.16355816,215.72,215.64,0.1]
[1731525446623,0.12549,215.73,215.66,43.16355816]
[1731525446928,0.12549,215.7,215.65,0.1]
[1731525447232,7.09762269,215.71,215.67,43.16355816]
[1731525447430,7.09762269,215.71,215.69,43.16355816]
[1731525447727,43.28904816,215.7,215.56,0.1]
[1731525447918,47.79975816,215.69,215.6,43.26355816]
[1731525448105,47.79975816,215.69,215.57,0.4176976]
[1731525448106,4.6362,215.69,215.64,43.16355816]
[1731525448308,11.73352269,215.71,215.63,0.1]
[1731525448512,0.12549,215.7,215.65,43.16355816]
[1731525448720,0.12549,215.7,215.61,0.2]
[1731525448721,0.12549,215.7,215.62,0.1]
[1731525448924,0.12549,215.7,215.65,43.16355816]
[1731525449230,4.6359,215.71,215.65,43.16355816]
[1731525449427,0.12549,215.7,215.65,43.16355816]
[1731525449614,4.6359,215.71,215.65,43.16355816]
[1731525449816,47.79945816,215.71,215.63,43.16355816]
[1731525450030,43.28904816,215.7,215.61,43.16355816]
[1731525450229,4.6359,215.71,215.65,43.16355816]
[1731525450435,7.09895184,215.74,215.69,43.16355816]
[1731525450610,7.09895184,215.74,215.61,0.1]
[1731525450811,7.09895184,215.74,215.49,43.26355816]
[1731525450812,43.16355816,215.72,215.65,43.26355816]
[1731525451043,43.16355816,215.72,215.63,43.16355816]
[1731525451342,11.5853,215.79,215.58,11.5966]
[1731525451343,43.16355816,215.79,215.71,43.16355816]
[1731525451510,4.634,215.8,215.74,0.1]
[1731525451716,4.6335,215.82,215.75,43.16355816]
[1731525452034,4.6339,215.8,215.73,43.16355816]
[1731525452328,7.88807939,215.81,215.76,0.2]
[1731525452538,7.09645508,215.81,215.76,0.1]
[1731525452711,50.26001324,215.81,215.76,0.1]
[1731525452912,0.12549,215.8,215.72,0.2]
[1731525453122,43.16355816,215.73,215.67,0.1]
[1731525453429,0.12549,215.8,215.6,11.5951]
[1731525453430,0.12549,215.69,215.62,0.1]
[1731525453743,0.12549,215.69,215.63,0.1]
[1731525453915,0.12549,215.69,215.62,43.16355816]
[1731525453916,4.6364,215.68,215.64,43.16355816]
[1731525454123,4.6354,215.73,215.66,43.16355816]
[1731525454345,4.6354,215.73,215.6,43.16355816]
[1731525454346,43.16355816,215.72,215.62,43.36355816]
[1731525454529,43.16355816,215.7,215.57,0.5176976]
[1731525454846,0.12549,215.64,215.57,0.3176976]
[1731525455135,43.16355816,215.68,215.59,43.26355816]
[1731525455430,16.2239,215.73,215.61,43.16355816]
[1731525455431,43.16355816,215.7,215.61,43.16355816]
[1731525455646,43.16355816,215.66,215.57,43.48125576]
[1731525455815,43.16355816,215.68,215.59,43.26355816]
[1731525456016,43.16355816,215.7,215.62,43.16355816]
[1731525456223,43.16355816,215.7,215.57,0.3176976]
[1731525456224,0.12549,215.65,215.58,43.16355816]
[1731525456429,0.12549,215.65,215.57,0.3176976]
[1731525457023,0.12549,215.61,215.57,0.3176976]
[1731525457424,43.16355816,215.66,215.57,0.3176976]
[1731525457819,0.12549,215.65,215.57,0.3176976]
[1731525458027,43.16355816,215.71,215.57,0.3176976]
[1731525458028,0.12549,215.63,215.57,0.3176976]
[1731525458234,0.12549,215.61,215.57,0.3176976]
[1731525459025,16.2306,215.64,215.57,0.3176976]
[1731525459026,59.39415816,215.64,215.57,0.3176976]
[1731525459230,4.6373,215.64,215.6,43.16355816]
[1731525459442,47.80085816,215.64,215.57,0.3176976]
[1731525459648,4.6373,215.64,215.6,43.16355816]
[1731525459822,4.6373,215.64,215.61,0.1]
[1731525460022,11.5903,215.7,215.57,0.3176976]
[1731525460023,43.16355816,215.66,215.57,0.4176976]
[1731525460239,7.0973585,215.63,215.62,0.1]
[1731525460418,7.0973585,215.63,215.6,0.1]
[1731525460747,4.6367,215.67,215.6,0.1]
[1731525460748,43.16355816,215.66,215.61,0.1]
[1731525461037,43.16355816,215.71,215.68,0.1]
[1731525461038,4.6358,215.71,215.68,0.1]
[1731525461244,4.6358,215.71,215.57,16.5533976]
[1731525461245,43.16355816,215.78,215.75,0.1]
[1731525461545,50.25830281,215.78,215.72,0.1]
[1731525461737,50.25830281,215.78,215.76,0.1]
[1731525462056,50.25830281,215.78,215.67,0.1]
[1731525462057,4.6345,215.77,215.67,0.1]
[1731525462227,43.16355816,215.71,215.67,0.1]
[1731525462738,43.16355816,215.71,215.64,32.6179]
[1731525462739,43.16355816,215.69,215.66,0.1]
[1731525462934,43.16355816,215.69,215.64,32.7179]
[1731525463124,43.16355816,215.69,215.64,32.8179]
[1731525463444,0.12549,215.7,215.66,0.1]
[1731525464042,43.16355816,215.69,215.67,0.1]
[1731525464335,4.6363,215.69,215.67,0.2]
[1731525464535,0.12549,215.68,215.65,0.1]
[1731525464946,0.12549,215.66,215.57,0.3176976]
[1731525465128,0.12549,215.62,215.57,0.4176976]
[1731525465453,0.12549,215.62,215.58,0.1]
[1731525465629,1.85498,215.65,215.59,0.1]
[1731525465831,43.28904816,215.64,215.58,0.1]
[1731525466050,0.12549,215.61,215.58,0.1]
[1731525466249,4.6382,215.6,215.58,0.1]
[1731525466449,4.6382,215.6,215.57,0.3176976]
[1731525466626,4.6382,215.6,215.57,0.5176976]
[1731525466920,4.6382,215.6,215.57,0.4176976]
[1731525467128,4.6382,215.6,215.57,0.5176976]
[1731525467728,4.6382,215.6,215.57,0.4176976]
[1731525467931,0.12549,215.59,215.57,0.3176976]
[1731525468330,4.76409,215.58,215.57,0.3176976]
[1731525468742,4.638,215.61,215.6,0.1]
[1731525469328,4.6367,215.67,215.64,0.1]
[1731525469523,43.16355816,215.66,215.64,0.1]
[1731525469844,4.6367,215.67,215.64,0.1]
[1731525470354,4.6367,215.67,215.62,0.1]
[1731525470355,4.6371,215.65,215.62,0.2]
[1731525470520,4.6371,215.65,215.62,0.1]
[1731525470726,4.6371,215.65,215.64,0.1]
[1731525470945,4.6371,215.65,215.62,0.2]
[1731525471152,4.6364,215.68,215.66,0.1]
[1731525471352,47.79995816,215.68,215.64,0.1]
[1731525471534,47.79995816,215.68,215.66,0.1]
[1731525471941,0.12549,215.67,215.65,0.1]
[1731525472141,43.16355816,215.66,215.65,0.1]
[1731525472451,4.6369,215.66,215.65,0.1]
[1731525472643,43.16355816,215.66,215.65,0.1]
[1731525472948,43.16355816,215.66,215.65,0.2]
[1731525473138,4.6366,215.68,215.57,4.9564976]
[1731525473139,4.6366,215.68,215.67,0.2]
[1731525473336,47.79965816,215.7,215.69,0.1]
[1731525473542,47.79965816,215.7,215.67,0.2]
[1731525474137,47.79965816,215.7,215.69,0.1]
[1731525474337,47.79965816,215.7,215.69,0.2]
[1731525474626,47.79965816,215.7,215.59,11.6959]
[1731525474627,47.79965816,215.7,215.67,0.2]
[1731525474831,47.79935816,215.72,215.68,31.2973]
[1731525475050,43.16355816,215.7,215.68,0.1]
[1731525475230,47.79935816,215.72,215.69,0.1]
[1731525475555,43.16355816,215.7,215.67,0.2]
[1731525475843,0.12549,215.71,215.66,0.1]
[1731525476052,0.12549,215.67,215.63,0.1]
[1731525476223,16.2248,215.72,215.59,44.3026]
[1731525476224,43.16355816,215.66,215.65,0.1]
[1731525476428,4.6362,215.69,215.67,0.1]
[1731525476634,4.6347,215.76,215.69,0.1]
[1731525476931,43.16355816,215.7,215.69,0.1]
[1731525477143,43.16355816,215.72,215.69,0.1]
[1731525477341,23.31950717,215.76,215.73,0.1]
[1731525477342,43.16355816,215.74,215.73,0.1]
[1731525477829,43.16355816,215.74,215.7,0.2]
[1731525478058,4.6347,215.76,215.75,0.1]
[1731525478297,4.6347,215.76,215.73,0.1]
[1731525478433,7.09777186,215.76,215.7,0.1]
[1731525478627,0.12549,215.75,215.72,0.1]
[1731525478857,62.5554,215.81,215.74,0.1]
[1731525479155,0.12549,215.74,215.65,0.1]
[1731525479353,43.16355816,215.71,215.66,0.1]
[1731525479540,43.16355816,215.71,215.59,44.3026]
[1731525479541,0.12549,215.7,215.62,0.1]
[1731525479851,43.16355816,215.63,215.61,0.2]
[1731525480060,43.16355816,215.62,215.59,31.1973]
[1731525480257,0.12549,215.7,215.61,0.1]
[1731525480258,43.16355816,215.64,215.61,0.1]
[1731525480555,43.16355816,215.62,215.6,0.1]
[1731525480754,43.16355816,215.62,215.61,0.1]
[1731525480947,11.5917,215.68,215.61,0.1]
[1731525480948,43.16355816,215.64,215.61,0.2]
[1731525481258,0.12549,215.63,215.61,0.1]
[1731525481458,0.12549,215.63,215.59,31.2973]
[1731525481754,11.5917,215.68,215.57,0.3176976]
[1731525481755,0.12549,215.59,215.57,0.3176976]
[1731525482476,4.76409,215.58,215.57,0.3176976]
[1731525482856,47.92764816,215.58,215.57,9.76e-05]
[1731525483884,0.12549,215.57,215.45,0.1]
[1731525484082,43.16355816,215.48,215.47,0.1]
[1731525484258,43.16355816,215.52,215.49,0.2]
[1731525484462,4.76559,215.51,215.49,0.1]
[1731525484675,43.16355816,215.5,215.49,0.1]
[1731525484977,43.16355816,215.5,215.44,0.1]
[1731525485176,0.12549,215.45,215.44,0.1]
[1731525485764,0.12549,215.44,215.42,30.1714]
[1731525485974,43.16355816,215.49,215.46,0.1]
[1731525486171,43.16355816,215.49,215.48,0.1]
[1731525486375,0.12549,215.48,215.44,0.1]
[1731525486555,43.28904816,215.46,215.44,0.1]
[1731525486962,43.28904816,215.46,215.42,0.1]
[1731525487186,4.641,215.47,215.36,0.1]
[1731525487187,0.12549,215.42,215.36,0.1]
[1731525487478,0.12549,215.36,215.35,0.5276362]
[1731525487680,0.12549,215.36,215.31,0.1]
[1731525487891,0.12549,215.36,215.19,30.6048]
[1731525487892,0.12549,215.31,215.26,0.1]
[1731525488060,0.12549,215.31,215.19,30.5048]
[1731525488061,0.12549,215.26,215.24,0.1]
[1731525488259,86.32711632,215.27,215.22,0.1]
[1731525488260,0.12549,215.24,215.22,0.1]
[1731525488471,4.77159,215.23,215.22,0.1]
[1731525488673,0.1,215.19,215.09,27.2555362]
[1731525488883,43.16355816,215.19,215.12,43.16355816]
[1731525489094,0.1,215.21,215.17,43.16355816]
[1731525489383,11.6106,215.33,215.19,43.16355816]
[1731525489384,0.1,215.25,215.19,43.16355816]
[1731525489588,0.1,215.25,215.1,16.2715]
[1731525489589,0.1,215.25,215.17,0.1]
[1731525489814,43.16355816,215.31,215.15,0.1]
[1731525490078,11.6065,215.4,215.1,16.2715]
[1731525490079,0.1,215.33,215.1,21.67610778]
[1731525490287,0.1,215.24,215.1,16.2715]
[1731525490488,0.1,215.24,215.06,43.16355816]
[1731525490489,16.2677,215.15,215.06,43.16355816]
[1731525490663,0.1,215.1,215.05,43.16355816]
[1731525490987,0.1,215.16,215.08,43.16355816]
[1731525491185,0.1,215.14,215.0,2.472782]
[1731525491384,0.1,215.1,215.03,43.59628099]
[1731525491681,0.1,215.13,215.09,43.59628099]
[1731525491896,0.1,215.16,215.11,43.59628099]
[1731525492087,0.1,215.19,215.11,43.59628099]
[1731525492393,0.1,215.16,215.06,30.8623]
[1731525492572,4.6479,215.15,215.09,43.59628099]
[1731525492890,0.1,215.13,215.06,30.8623]
[1731525493089,0.12549,215.12,215.06,30.8623]
[1731525493261,0.1,215.07,215.02,43.59628099]
[1731525493466,4.6479,215.15,215.06,43.59628099]
[1731525493666,4.7466,215.21,215.09,0.1]
[1731525493882,4.7466,215.21,215.15,43.59628099]
[1731525494097,4.7466,215.21,215.13,43.59628099]
[1731525494266,4.7466,215.21,215.0,54.709882]
[1731525494267,0.1,215.18,215.09,43.59628099]
[1731525494463,43.59628099,215.27,215.07,43.59628099]
[1731525494464,0.12549,215.14,215.07,43.59628099]
[1731525494676,0.1,215.11,215.04,43.59628099]
[1731525494878,0.58766396,215.13,215.08,43.59628099]
[1731525495164,0.58766396,215.13,215.0,15.175182]
[1731525495165,0.58766396,215.13,215.12,43.59628099]
[1731525495986,0.58766396,215.13,215.01,20.0]
[1731525496177,0.1,215.12,215.08,43.59628099]
[1731525496375,0.22549,215.12,215.08,43.59628099]
[1731525496584,4.6492,215.09,215.02,43.59628099]
[1731525496785,0.22549,215.08,215.02,43.59628099]
[1731525497113,4.6492,215.09,215.06,43.59628099]
[1731525497287,4.7492,215.1,215.06,43.59628099]
[1731525497494,4.7492,215.1,215.08,43.59628099]
[1731525497495,0.1,215.1,215.08,43.59628099]
[1731525497673,0.1,215.1,215.0,2.572782]
[1731525497674,0.1,215.07,215.04,43.59628099]
[1731525498101,0.1,215.07,215.0,2.472782]
[1731525498102,0.1,215.07,215.06,43.59628099]
[1731525498313,0.1,215.04,215.0,2.472782]
[1731525498680,0.1,215.12,215.03,43.59628099]
[1731525498879,0.58766396,215.13,215.03,0.1]
[1731525499191,0.58766396,215.13,215.0,17.123882]
[1731525499192,0.1,215.12,215.0,17.123882]
[1731525499404,0.58766396,215.13,215.0,17.223882]
[1731525499584,0.58766396,215.13,215.1,43.59628099]
[1731525499988,0.1,215.12,215.1,43.59628099]
[1731525500183,0.1,215.09,215.06,43.59628099]
[1731525500392,0.1,215.11,215.06,43.59628099]
[1731525500588,4.7488,215.11,215.06,43.59628099]
[1731525500901,4.7479,215.15,215.1,43.59628099]
[1731525501085,0.1,215.24,215.14,43.59628099]
[1731525501411,0.1,215.26,215.21,43.59628099]
[1731525501585,0.1,215.26,215.23,43.59628099]
[1731525501894,6.3685,215.49,215.25,43.59628099]
[1731525501895,0.1,215.3,215.25,43.59628099]
[1731525502083,0.1,215.27,215.25,43.59628099]
[1731525502278,0.1,215.22,215.19,43.59628099]
[1731525502496,0.1,215.24,215.19,43.59628099]
[1731525502690,0.1,215.28,215.23,43.59628099]
[1731525502897,7.05926348,215.36,215.13,14.6421]
[1731525502898,0.1,215.22,215.21,43.59628099]
[1731525503087,0.1,215.22,215.13,14.6421]
[1731525503088,0.1,215.18,215.17,43.59628099]
[1731525503290,0.1,215.18,215.12,44.8694]
[1731525503291,0.1,215.18,215.15,43.59628099]
[1731525503499,0.1,215.16,215.15,43.59628099]
[1731525503702,0.1,215.16,215.13,43.59628099]
[1731525503891,0.1,215.2,215.15,43.59628099]
[1731525504089,0.1,215.16,215.13,43.59628099]
[1731525504404,0.1,215.17,215.15,43.59628099]
[1731525504616,43.59628099,215.26,215.15,43.59628099]
[1731525504617,0.1,215.18,215.15,43.59628099]
[1731525504787,0.1,215.2,215.15,43.59628099]
[1731525504991,11.6117,215.3,215.17,43.59628099]
[1731525504992,0.1,215.18,215.17,43.59628099]
[1731525505203,0.1,215.18,215.15,43.59628099]
[1731525505395,4.6465,215.22,215.06,10.4618]
[1731525505396,0.1,215.14,215.11,43.59628099]
[1731525505597,0.1,215.08,215.06,43.59628099]
[1731525505811,0.1,215.08,215.04,75.67148099]
[1731525506115,0.22549,215.13,215.06,43.59628099]
[1731525506409,0.1,215.09,215.06,43.59628099]
[1731525506595,43.59628099,215.07,215.0,2.472782]
[1731525506792,43.59628099,215.01,215.0,2.347382]
[1731525507012,43.69628099,215.01,215.0,2.347382]
[1731525507186,43.82177099,215.01,215.0,2.347382]
[1731525507387,43.82177099,215.01,214.94,0.3855194]
[1731525507388,0.1,214.95,214.94,0.3855194]
[1731525507988,0.22549,214.95,214.94,0.3855194]
[1731525508187,0.22549,214.95,214.94,1.94e-05]
[1731525508388,0.1,214.76,214.73,30.6072218]
[1731525508612,0.1,214.76,214.73,0.4257218]
[1731525508613,4.7567,214.74,214.73,0.4257218]
[1731525508788,4.88219,214.74,214.73,0.4257218]
[1731525508988,0.1,214.74,214.73,44.02200279]
[1731525509198,43.69628099,214.79,214.73,0.4257218]
[1731525509515,0.1,214.82,214.77,43.59628099]
[1731525509710,43.59628099,214.87,214.73,0.4257218]
[1731525509711,0.1,214.84,214.79,43.59628099]
[1731525509898,0.1,214.81,214.79,43.59628099]
[1731525510088,0.1,214.93,214.79,43.59628099]
[1731525510415,0.1,214.88,214.87,43.59628099]
[1731525510711,0.1,214.88,214.83,43.59628099]
[1731525510712,0.1,214.94,214.84,0.1]
[1731525510888,93.2428,215.12,214.83,43.59628099]
[1731525510889,0.1,214.95,214.88,0.1]
[1731525511090,0.1,214.97,214.84,20.0]
[1731525511294,0.1,214.96,214.85,0.1]
[1731525511707,0.1,214.97,214.87,0.1]
[1731525511915,70.0,215.16,214.94,43.59628099]
[1731525511916,0.1,214.99,214.94,43.59628099]
[1731525512300,0.1,215.03,214.98,43.59628099]
[1731525512500,0.1,215.05,214.98,43.59628099]
[1731525512705,0.1,215.08,215.02,43.59628099]
[1731525513007,0.1,215.1,215.06,43.59628099]
[1731525513204,0.1,215.13,215.08,43.59628099]
[1731525513403,0.1,215.19,215.12,43.59628099]
[1731525513615,0.1,215.23,215.17,43.59628099]
[1731525513918,0.1,215.23,215.04,12.8408]
[1731525513919,0.1,215.13,215.04,12.8408]
[1731525514094,43.59628099,215.19,215.04,12.8408]
[1731525514095,0.1,215.17,215.12,43.59628099]
[1731525514297,4.6462,215.23,215.1,43.59628099]
[1731525514298,0.1,215.13,215.1,43.59628099]
[1731525514496,43.69628099,215.23,215.12,43.59628099]
[1731525514695,0.1,215.25,215.21,43.59628099]
[1731525514922,0.1,215.31,215.24,43.59628099]
[1731525515222,0.1,215.36,215.3,43.59628099]
[1731525515600,0.1,215.32,215.26,43.59628099]
[1731525515809,0.1,215.28,215.24,43.59628099]
[1731525516010,0.1,215.31,215.24,43.59628099]
[1731525516215,0.1,215.33,215.26,43.59628099]
[1731525516508,0.1,215.41,215.32,43.59628099]